bitfinex/quotes_ETHUSD_20251126
["timestamp","ask_amount","ask_price","bid_price","bid_amount"]
[1764158541667,0.4864,2920.6,2919.8,0.216]
[1764158541880,0.4864,2920.6,2919.8,6.55105098]
[1764158542232,0.4864,2920.6,2920.0,0.001]
[1764158543367,0.4864,2920.6,2920.1,0.216]
[1764158543742,0.4511,2920.2,2920.1,0.216]
[1764158543948,0.4511,2920.2,2920.0,0.001]
[1764158544147,0.9375,2920.1,2920.0,0.217]
[1764158545043,0.9375,2920.1,2920.0,0.001]
[1764158545996,7.27255098,2920.1,2920.0,0.001]
[1764158546139,0.72559411,2920.0,2919.8,0.001]
[1764158546343,7.48855098,2920.1,2919.8,0.001]
[1764158546344,8.18404509,2919.9,2919.8,0.001]
[1764158546568,8.18404509,2919.9,2919.6,0.001]
[1764158546756,0.0044,2919.7,2919.6,0.001]
[1764158547073,7.06504509,2919.7,2919.6,0.001]
[1764158547274,7.55144509,2919.7,2919.6,0.001]
[1764158548546,1.21639411,2919.7,2919.6,0.001]
[1764158552381,1.21559411,2919.7,2919.6,0.001]
[1764158554464,4.06317111,2919.6,2919.5,0.001]
[1764158554787,5.60927511,2919.6,2919.5,0.001]
[1764158555482,4.199953,2919.6,2919.5,0.001]
[1764158557214,4.51857553,2919.6,2919.5,0.001]
[1764158557422,0.405504,2919.5,2918.8,0.001]
[1764158557593,4.49707111,2919.1,2918.8,0.001]
[1764158557795,0.72559411,2919.0,2918.8,0.001]
[1764158558000,0.72559411,2919.0,2918.3,0.001]
[1764158558001,12.095232,2918.7,2918.3,0.001]
[1764158558194,9.57523567,2918.7,2918.3,0.001]
[1764158558385,12.594332,2918.7,2918.3,0.001]
[1764158558781,12.810332,2918.7,2918.3,0.001]
[1764158558987,4.5684122,2918.6,2918.3,0.001]
[1764158559225,5.0539122,2918.4,2918.3,0.001]
[1764158559423,5.4928122,2918.4,2918.3,0.001]
[1764158560216,4.79999811,2918.4,2918.3,0.001]
[1764158560520,0.4855,2918.4,2918.3,0.001]
[1764158560722,0.217,2918.8,2918.3,0.4613]
[1764158560896,0.7034,2918.8,2918.3,0.4613]
[1764158561102,0.7034,2918.8,2918.3,0.4337]
[1764158561303,0.4864,2918.7,2918.3,0.4337]
[1764158561511,0.4864,2918.7,2918.3,0.4347]
[1764158562319,0.217,2918.8,2918.3,0.4674]
[1764158562532,0.7034,2918.8,2918.3,0.4674]
[1764158562888,0.217,2918.8,2918.3,0.4674]
[1764158563420,0.1943,2918.9,2918.3,0.4674]
[1764158563735,0.002,2919.6,2918.3,0.4674]
[1764158563736,0.7054,2919.6,2918.8,0.4603]
[1764158563905,0.7054,2919.6,2918.9,0.4603]
[1764158564104,0.4901,2919.5,2918.9,0.4603]
[1764158564516,0.456,2919.0,2918.3,0.001]
[1764158564714,0.0093,2918.7,2918.3,0.001]
[1764158565136,0.0093,2918.7,2918.3,0.4643]
[1764158565608,0.1901,2918.9,2918.6,0.4921]
[1764158565802,0.4901,2919.0,2918.3,0.4643]
[1764158566008,0.1901,2919.1,2918.3,0.4643]
[1764158566629,0.4921,2919.6,2919.0,0.4921]
[1764158566906,0.7091,2919.6,2919.0,0.4921]
[1764158567340,0.31833443,2919.5,2919.0,0.4921]
[1764158567738,0.80843443,2919.5,2919.0,0.4921]
[1764158567938,0.4901,2919.5,2919.0,0.4921]
[1764158569345,0.3186232,2919.4,2919.0,0.4921]
[1764158569536,0.4901,2919.5,2919.0,0.4921]
[1764158569847,0.80874091,2919.4,2919.0,0.4921]
[1764158570042,0.456,2919.1,2918.4,0.4633]
[1764158570244,0.456,2919.1,2918.3,0.001]
[1764158570449,0.219,2919.6,2918.3,0.001]
[1764158570666,0.4901,2919.3,2918.4,0.4633]
[1764158571351,0.31904794,2919.2,2918.4,0.4633]
[1764158571551,0.4901,2919.3,2918.4,0.4633]
[1764158571749,0.31904815,2919.2,2918.4,0.4633]
[1764158571934,0.4901,2919.3,2918.4,0.4633]
[1764158572129,0.31905232,2919.2,2918.4,0.4633]
[1764158572343,0.4901,2919.3,2918.4,0.4633]
[1764158572547,0.31924175,2919.2,2918.4,0.4633]
[1764158572747,0.4901,2919.3,2918.4,0.4633]
[1764158572949,0.31924357,2919.2,2918.4,0.4633]
[1764158573148,0.31950222,2919.1,2918.4,0.4633]
[1764158573348,0.4901,2919.3,2918.4,0.4633]
[1764158573568,0.31950325,2919.2,2918.4,0.4633]
[1764158573772,0.31950325,2919.1,2918.3,0.001]
[1764158573955,0.4901,2919.2,2918.3,0.4643]
[1764158574157,0.31949913,2919.1,2918.3,0.4643]
[1764158574384,0.31949913,2919.0,2918.3,0.4643]
[1764158574670,0.4901,2919.2,2918.3,0.4643]
[1764158574878,0.31976102,2919.1,2918.3,0.4643]
[1764158575060,0.31976102,2919.0,2918.3,0.4643]
[1764158575364,0.31998493,2918.9,2918.3,0.4643]
[1764158575565,0.4901,2919.4,2918.3,0.4643]
[1764158575863,0.31999103,2919.3,2918.3,0.4643]
[1764158576064,0.31999103,2919.2,2918.3,0.4643]
[1764158576269,0.31999103,2919.1,2918.3,0.4643]
[1764158576473,0.31999103,2919.0,2918.3,0.4643]
[1764158576677,0.31999103,2918.9,2918.3,0.4643]
[1764158576972,0.4901,2919.3,2918.3,0.4643]
[1764158577167,0.320078,2919.2,2918.3,0.4643]
[1764158577338,0.6461,2918.4,2918.2,0.001]
[1764158577537,7.02172845,2918.3,2917.9,0.001]
[1764158577763,12.87132211,2918.1,2917.9,0.001]
[1764158577976,2.84050849,2918.1,2917.9,0.001]
[1764158578181,1.73056138,2918.1,2917.9,0.001]
[1764158578387,0.320078,2918.1,2917.9,0.001]
[1764158579383,1.266178,2918.1,2917.9,0.001]
[1764158581085,14.39734711,2918.1,2917.9,0.001]
[1764158581445,4.46867511,2918.0,2917.6,0.001]
[1764158581653,0.405504,2917.2,2915.7,0.1801]
[1764158581850,0.405504,2916.4,2914.6,0.1801]
[1764158582085,0.405504,2916.4,2914.0,0.31754877]
[1764158582086,8.25241391,2915.3,2914.0,0.31754877]
[1764158582256,0.72559411,2915.0,2914.0,0.31754877]
[1764158582453,3.337577,2915.1,2914.0,0.31754877]
[1764158582454,0.405504,2914.7,2914.0,0.13744877]
[1764158582662,0.31850034,2914.6,2913.6,0.1801]
[1764158582858,0.53550034,2914.5,2913.8,0.4633]
[1764158583064,0.217,2914.5,2913.6,0.1801]
[1764158583271,0.405504,2914.8,2913.7,0.4633]
[1764158583474,0.217,2914.7,2913.7,0.4633]
[1764158583876,0.217,2914.8,2913.7,0.4633]
[1764158584180,0.217,2914.8,2913.6,0.1801]
[1764158584181,0.217,2914.7,2913.6,0.1801]
[1764158584391,0.405504,2914.2,2913.0,0.1801]
[1764158584555,0.4901,2914.6,2913.2,0.4633]
[1764158584767,0.1901,2914.9,2913.2,0.4633]
[1764158584960,0.1901,2914.9,2913.3,0.72559411]
[1764158585181,0.1901,2914.9,2913.2,8.71571391]
[1764158585182,0.217,2914.8,2913.2,0.4633]
[1764158585354,0.217,2914.8,2913.3,0.4652]
[1764158585699,0.6631,2914.9,2913.4,0.405504]
[1764158585901,0.217,2914.7,2913.5,0.4652]
[1764158586299,0.473,2914.6,2913.5,0.4652]
[1764158586503,0.217,2914.7,2913.5,0.4652]
[1764158586943,3.743081,2914.6,2913.1,0.4652]
[1764158587087,0.09973709,2914.3,2913.0,0.1801]
[1764158587414,1.13109811,2913.9,2912.7,0.1903]
[1764158587710,0.217,2913.8,2912.7,0.1903]
[1764158587908,0.405504,2913.7,2912.7,0.1903]
[1764158588203,0.878504,2913.7,2912.7,0.1903]
[1764158588382,0.217,2913.6,2912.7,0.1903]
[1764158588579,0.69,2913.6,2912.7,0.1903]
[1764158588805,0.473,2913.6,2912.7,0.1903]
[1764158589003,0.69,2913.5,2912.7,0.1903]
[1764158589180,0.69,2913.5,2911.8,0.00162694]
[1764158589382,0.878504,2913.4,2912.2,0.4652]
[1764158589612,0.878504,2913.4,2911.8,0.00162694]
[1764158589802,0.405504,2913.1,2911.8,0.00162694]
[1764158590239,0.473,2913.0,2911.8,0.00162694]
[1764158590706,0.473,2913.0,2911.9,0.4652]
[1764158591527,0.473,2913.5,2912.2,0.4652]
[1764158592094,0.218,2913.4,2912.2,0.4652]
[1764158593193,0.473,2913.3,2911.8,0.46682694]
[1764158593435,0.57273709,2913.3,2911.8,0.46682694]
[1764158593898,0.405504,2913.2,2911.8,0.46682694]
[1764158594093,0.218,2913.1,2911.8,0.00162694]
[1764158594429,0.405504,2913.0,2911.8,0.00162694]
[1764158594730,0.4551,2912.9,2911.8,0.00162694]
[1764158595128,0.405504,2912.8,2911.8,0.00162694]
[1764158595316,0.4987,2912.2,2911.8,0.00162694]
[1764158595893,0.9538,2912.2,2911.8,0.00162694]
[1764158596098,1.359304,2912.2,2911.8,0.00162694]
[1764158596434,5.5222122,2912.2,2912.0,0.001]
[1764158597105,4.37379311,2912.2,2912.0,0.001]
[1764158597506,4.4735302,2912.2,2912.0,0.001]
[1764158597730,2.08489811,2912.2,2912.0,0.001]
[1764158597931,2.4026352,2912.2,2912.0,0.001]
[1764158598231,5.7402122,2912.2,2912.0,0.001]
[1764158598421,5.7402122,2912.2,2911.8,0.00262694]
[1764158598422,4.5684122,2911.9,2911.8,0.00262694]
[1764158598621,5.2555122,2911.9,2911.8,0.00262694]
[1764158598824,5.2167942,2911.9,2911.8,0.00262694]
[1764158599023,5.7106122,2911.9,2911.8,0.00262694]
[1764158600248,13.95928899,2911.9,2911.8,0.00262694]
[1764158600814,14.34205204,2911.9,2911.8,0.00262694]
[1764158601014,11.00447504,2911.9,2911.8,0.00262694]
[1764158601242,11.00447504,2911.9,2909.6,0.4814]
[1764158601243,0.09973709,2911.1,2909.6,0.4814]
[1764158601443,3.792677,2911.8,2909.9,0.1856]
[1764158601444,0.623504,2911.0,2909.9,0.1856]
[1764158601613,0.69,2910.1,2909.0,0.1856]
[1764158601816,0.218,2910.0,2909.0,0.667]
[1764158602015,0.218,2910.0,2909.1,0.4814]
[1764158602342,0.218,2909.9,2909.1,0.4814]
[1764158602550,0.218,2909.8,2909.0,0.1856]
[1764158602713,0.405504,2909.7,2908.9,0.1856]
[1764158602910,0.4551,2909.6,2908.6,0.1856]
[1764158603127,0.405504,2909.5,2908.6,0.1856]
[1764158603325,0.218,2909.4,2908.7,0.4814]
[1764158603647,0.596804,2910.0,2908.7,0.4814]
[1764158603946,0.405504,2909.8,2908.7,0.4814]
[1764158604148,0.1913,2910.0,2908.7,0.4814]
[1764158604348,0.218,2909.9,2908.7,0.4814]
[1764158604569,0.218,2909.8,2908.7,0.4814]
[1764158604921,0.218,2909.8,2905.9,1.89512082]
[1764158604922,3.743081,2908.7,2907.2,0.1856]
[1764158605144,1.2308352,2908.3,2906.3,0.1856]
[1764158605338,0.405504,2907.8,2906.3,0.1856]
[1764158605547,0.72559411,2907.4,2906.3,0.1856]
[1764158605734,0.405504,2907.2,2906.3,0.1856]
[1764158605937,0.4551,2907.1,2906.3,0.1856]
[1764158606136,0.4103,2907.7,2906.3,0.667]
[1764158606357,0.8654,2907.7,2906.4,0.4814]
[1764158606924,0.405504,2907.6,2906.4,0.4814]
[1764158607255,1.7451,2907.5,2906.3,0.1856]
[1764158607424,0.860604,2907.4,2906.3,0.1856]
[1764158607624,0.405504,2907.2,2906.1,0.1856]
[1764158607860,0.405504,2907.2,2906.2,0.4814]
[1764158608060,0.4551,2907.3,2906.2,0.4814]
[1764158608358,0.405504,2907.6,2906.2,0.4814]
[1764158608656,0.1913,2907.9,2906.3,8.24867679]
[1764158608821,0.75854273,2908.4,2906.4,0.72559411]
[1764158609019,3.337577,2908.3,2906.4,1.42599411]
[1764158609219,3.337577,2908.3,2906.3,8.24867679]
[1764158609220,0.4551,2908.2,2906.5,0.4814]
[1764158609467,0.405504,2908.0,2906.5,0.4814]
[1764158609772,0.405504,2908.1,2906.5,0.4814]
[1764158610061,0.1913,2907.9,2906.5,0.4814]
[1764158611120,0.1913,2907.9,2906.1,0.1856]
[1764158611121,0.860604,2907.8,2906.3,0.4814]
[1764158611456,0.405504,2907.6,2906.3,0.4814]
[1764158611823,0.1913,2907.9,2906.3,0.4814]
[1764158612050,0.1913,2908.2,2906.5,8.24867679]
[1764158612254,0.219,2908.4,2906.6,1.13109811]
[1764158612451,0.4551,2908.5,2906.6,1.61249811]
[1764158612763,8.7881823,2909.7,2906.6,1.61249811]
[1764158612764,3.337577,2908.8,2906.8,0.405504]
[1764158612968,0.4551,2908.9,2906.8,0.405504]
[1764158613168,0.219,2909.5,2907.2,1.13109811]
[1764158613169,0.99458219,2909.3,2907.2,1.13109811]
[1764158613342,0.99458219,2909.3,2907.4,0.405504]
[1764158613669,0.4551,2909.2,2907.4,0.405504]
[1764158613829,0.6741,2909.5,2907.6,0.405504]
[1764158614237,0.55483709,2909.4,2907.7,0.4814]
[1764158614557,0.1913,2910.2,2909.4,0.6416]
[1764158614870,0.6464,2910.8,2909.4,0.6416]
[1764158615102,0.002,2911.9,2910.9,0.1856]
[1764158615431,0.002,2911.9,2910.0,0.1856]
[1764158615432,0.6484,2911.9,2910.6,0.1856]
[1764158615673,0.74813709,2911.9,2910.6,0.1856]
[1764158615843,0.1913,2910.7,2909.4,0.667]
[1764158616248,0.6464,2910.9,2909.5,0.4814]
[1764158616446,0.55483709,2911.4,2909.5,0.4814]
[1764158616771,0.72559411,2911.3,2909.5,0.4814]
[1764158617141,1.18069411,2911.3,2909.5,0.4814]
[1764158617456,0.72559411,2911.1,2909.5,0.4814]
[1764158617658,3.337577,2911.1,2909.5,0.4814]
[1764158617972,0.4551,2911.4,2909.5,1.20699411]
[1764158618152,0.405504,2911.3,2909.5,1.20699411]
[1764158618489,0.405504,2911.1,2909.6,0.4814]
[1764158618779,0.09973709,2910.8,2909.4,0.1856]
[1764158618984,0.405504,2910.9,2909.4,0.1856]
[1764158618985,0.72559411,2910.6,2909.4,0.1856]
[1764158619133,0.09973709,2910.6,2909.4,0.1856]
[1764158619337,0.405504,2910.3,2909.0,0.1856]
[1764158619556,0.50524109,2910.3,2909.0,0.1856]
[1764158619761,0.4551,2910.2,2909.0,0.1856]
[1764158620358,0.405504,2910.1,2909.0,0.1856]
[1764158620560,0.4551,2910.2,2908.3,0.4814]
[1764158620561,1.13109811,2909.7,2908.3,0.4814]
[1764158620759,0.74613709,2909.6,2908.3,0.4814]
[1764158620960,0.50524109,2909.3,2907.8,0.4814]
[1764158621191,0.405504,2909.3,2908.1,0.4814]
[1764158621390,0.4551,2909.2,2908.1,0.4814]
[1764158621582,0.4551,2909.2,2907.7,0.4814]
[1764158622174,0.405504,2909.5,2908.1,0.4814]
[1764158622696,0.4551,2909.5,2908.1,0.4814]
[1764158622861,0.1913,2909.6,2908.1,0.4814]
[1764158623485,0.6464,2909.6,2908.1,0.4814]
[1764158623768,0.405504,2909.5,2908.1,0.4814]
[1764158623984,0.96034109,2909.5,2908.1,0.4814]
[1764158624366,0.55353709,2909.4,2908.1,0.4814]
[1764158625468,0.4538,2909.4,2908.1,0.4814]
[1764158625998,0.09973709,2909.3,2907.7,0.4823]
[1764158626173,0.4538,2909.4,2908.1,0.4823]
[1764158626603,0.4538,2909.2,2908.1,0.4823]
[1764158626813,0.89659225,2910.2,2908.2,0.405504]
[1764158627091,0.1928,2909.9,2909.1,0.1856]
[1764158627795,1.08789225,2910.7,2909.1,0.1856]
[1764158628009,3.337577,2910.4,2909.2,0.4823]
[1764158628301,0.72559411,2910.3,2909.2,0.4823]
[1764158628606,0.859304,2910.4,2909.2,0.4823]
[1764158628922,0.8253312,2910.0,2908.5,0.4823]
[1764158629121,0.09973709,2910.0,2908.5,0.7023]
[1764158629413,0.1928,2909.9,2908.5,0.7023]
[1764158629629,3.8163,2910.7,2908.1,0.405504]
[1764158629630,0.89659225,2910.8,2909.3,0.72559411]
[1764158629773,0.1928,2910.9,2909.8,0.1805]
[1764158630108,0.6466,2910.9,2909.4,0.673]
[1764158630415,3.337577,2910.6,2909.4,0.673]
[1764158630579,0.405504,2910.7,2909.5,0.4823]
[1764158630775,0.1928,2910.9,2909.5,0.4823]
[1764158631672,0.1928,2910.9,2909.4,0.1907]
[1764158631673,0.72559411,2910.6,2909.4,0.1907]
[1764158631902,0.4538,2910.5,2909.4,0.1907]
[1764158632391,0.4538,2910.5,2909.5,0.4823]
[1764158632604,0.405504,2910.8,2909.5,0.4823]
[1764158632996,0.405504,2910.8,2909.5,0.4833]
[1764158633304,0.4538,2910.8,2909.5,0.4833]
[1764158633493,0.55353709,2910.8,2909.5,0.4833]
[1764158633697,0.002,2910.9,2910.7,0.1805]
[1764158634006,0.1948,2910.9,2910.0,0.1907]
[1764158634511,0.6486,2910.9,2909.6,0.4823]
[1764158635002,0.1948,2910.9,2909.6,0.4823]
[1764158635192,0.4538,2910.8,2909.6,0.4823]
[1764158635775,0.09973709,2910.7,2909.6,0.4823]
[1764158636204,0.4538,2910.7,2909.6,0.4823]
[1764158637487,0.405504,2910.6,2909.5,0.001]
[1764158637687,0.09973709,2910.4,2909.5,0.001]
[1764158638211,0.6533,2909.6,2909.5,0.001]
[1764158638509,0.50999494,2909.6,2909.5,0.001]
[1764158639013,0.31719494,2909.6,2909.5,0.001]
[1764158640610,1.23149494,2909.6,2909.5,0.001]
[1764158641314,5.79990714,2909.6,2909.5,0.001]
[1764158641608,6.53264028,2909.6,2909.5,0.001]
[1764158641810,14.78131707,2909.6,2909.5,0.001]
[1764158642018,0.405504,2909.2,2907.3,0.4823]
[1764158642200,13.27348899,2909.0,2907.3,0.4823]
[1764158642516,0.72559411,2908.7,2907.3,0.4823]
[1764158642730,0.31719494,2908.6,2908.1,0.0566]
[1764158642880,0.31719494,2908.5,2907.7,0.4823]
[1764158643213,0.31719494,2908.4,2907.7,0.4823]
[1764158643411,0.73276103,2908.7,2907.7,0.4823]
[1764158643412,0.31719494,2908.3,2907.7,0.4823]
[1764158643601,0.4538,2908.8,2907.7,0.4823]
[1764158643789,0.31815041,2908.7,2907.7,0.4823]
[1764158643994,0.31815041,2908.6,2907.7,0.4823]
[1764158644203,0.31815041,2908.5,2907.2,0.4823]
[1764158644516,0.31815041,2908.4,2907.2,0.4823]
[1764158644716,0.31815041,2908.3,2907.2,0.4823]
[1764158644896,0.4538,2908.7,2907.2,0.4823]
[1764158645098,0.31803455,2908.6,2907.2,0.4823]
[1764158645338,0.78376633,2908.9,2907.0,0.1907]
[1764158645339,0.91555641,2909.6,2908.8,0.0566]
[1764158645631,0.4862,2910.6,2908.8,0.2786]
[1764158645786,0.1879,2909.9,2908.8,0.4277]
[1764158646207,0.4862,2909.8,2908.8,0.0566]
[1764158646520,0.4862,2910.3,2908.9,0.3711]
[1764158646720,0.1879,2909.9,2908.9,0.3711]
[1764158646921,0.1879,2909.9,2907.8,0.72559411]
[1764158647124,0.09973709,2907.0,2903.7,11.79335453]
[1764158647323,0.405504,2908.1,2904.5,0.01153099]
[1764158647324,0.53957325,2904.6,2904.5,0.01153099]
[1764158647528,0.0008,2903.0,2902.5,0.17948228]
[1764158647687,0.405504,2903.1,2901.7,0.1932]
[1764158647892,0.229,2903.6,2901.2,7.57199982]
[1764158647893,0.72559411,2902.9,2901.2,7.57199982]
[1764158648083,0.229,2903.6,2900.8,3.380248]
[1764158648084,0.09999999,2903.6,2900.8,3.380248]
[1764158648311,7.91903228,2901.1,2901.0,11.214569]
[1764158648619,0.09999999,2904.1,2901.0,8.14538878]
[1764158648786,1.81731695,2901.8,2901.6,5.10416]
[1764158648983,2.42308927,2902.2,2901.7,8.14538878]
[1764158649209,1.81745814,2902.6,2901.7,7.78664196]
[1764158649410,1.81745814,2902.6,2901.8,7.80299982]
[1764158649618,4.24040623,2903.0,2902.3,0.0992]
[1764158649801,4.24040623,2903.0,2901.8,0.57338896]
[1764158649802,0.09999999,2902.6,2901.8,0.57338896]
[1764158650002,0.235,2903.6,2901.9,0.0634]
[1764158650233,16.019505,2903.4,2901.9,0.0634]
[1764158650389,4.24040623,2903.3,2902.0,0.1]
[1764158650587,4.24040623,2903.3,2901.9,0.0634]
[1764158650787,16.019505,2903.2,2901.9,0.0634]
[1764158651024,16.019505,2903.4,2901.9,0.0634]
[1764158651188,0.09919999,2903.3,2900.9,0.1851]
[1764158651386,0.91349411,2903.5,2900.9,0.1851]
[1764158651387,16.019505,2903.5,2901.3,0.0634]
[1764158651693,16.019505,2903.4,2901.3,0.1634]
[1764158652020,16.019505,2903.4,2901.7,7.57199982]
[1764158652192,0.09919999,2903.6,2901.8,0.0634]
[1764158652393,16.019505,2903.5,2901.8,0.0634]
[1764158652701,16.019505,2903.4,2901.8,0.0634]
[1764158652920,16.019505,2903.4,2901.8,0.1634]
[1764158653292,16.019505,2903.4,2901.9,0.0634]
[1764158653524,0.6741,2904.0,2901.9,0.0634]
[1764158653525,16.019505,2903.6,2901.9,0.0634]
[1764158653726,16.019505,2903.9,2901.9,0.0634]
[1764158654026,0.1971,2902.0,2900.4,0.0634]
[1764158654230,16.11870499,2901.2,2899.8,0.0634]
[1764158654537,16.019505,2901.1,2899.4,0.0634]
[1764158654697,0.09919999,2900.4,2898.9,0.0644]
[1764158654894,16.019505,2900.1,2898.9,0.0644]
[1764158655088,16.019505,2899.9,2899.1,0.001]
[1764158655326,0.05,2902.1,2899.1,0.001]
[1764158655327,0.72559411,2900.7,2899.2,0.0634]
[1764158655490,16.019505,2900.5,2899.1,0.001]
[1764158655691,16.11870499,2900.9,2899.2,0.0634]
[1764158655892,16.019505,2900.8,2899.2,0.0634]
[1764158656092,0.09919999,2902.0,2899.2,0.0634]
[1764158656292,16.019505,2901.9,2899.6,6.82525311]
[1764158656602,0.09919999,2901.9,2899.8,0.72559411]
[1764158656801,16.019505,2901.8,2900.0,0.1]
[1764158657124,0.33619999,2902.1,2900.4,0.1]
[1764158657125,0.09919999,2902.1,2900.4,0.1]
[1764158657428,16.019505,2901.9,2900.3,0.1]
[1764158657636,16.019505,2902.0,2900.4,0.1]
[1764158658123,16.73068668,2901.9,2899.8,0.0634]
[1764158658309,16.019505,2901.3,2899.8,0.0634]
[1764158658512,0.71002051,2901.2,2899.8,0.0634]
[1764158658689,16.019505,2901.0,2899.8,0.0634]
[1764158658892,16.019505,2901.3,2899.8,0.0634]
[1764158659126,16.019505,2901.1,2899.8,0.0634]
[1764158659295,16.019505,2901.6,2899.8,0.1634]
[1764158659493,16.019505,2901.6,2899.4,0.72559411]
[1764158659494,16.019505,2901.6,2899.9,0.0634]
[1764158659781,16.019505,2901.2,2899.9,0.0634]
[1764158659900,16.019505,2901.2,2900.0,0.405504]
[1764158660296,16.019505,2901.6,2900.2,0.405504]
[1764158660528,16.019505,2902.3,2900.2,0.405504]
[1764158660734,16.019505,2902.1,2900.6,0.405504]
[1764158661063,16.256505,2902.5,2900.8,0.405504]
[1764158661327,16.019505,2902.3,2900.8,0.405504]
[1764158661494,16.019505,2902.0,2900.5,0.405504]
[1764158661903,16.019505,2901.8,2900.5,0.405504]
[1764158662121,16.11870499,2901.8,2900.1,0.405504]
[1764158662344,16.019505,2901.7,2900.1,0.405504]
[1764158662511,0.237,2901.6,2900.1,0.0634]
[1764158662711,16.019505,2901.5,2900.1,0.0634]
[1764158663048,16.019505,2901.5,2899.1,0.001]
[1764158663049,0.09919999,2900.9,2899.1,0.001]
[1764158663246,0.10183733,2899.1,2899.0,0.0634]
[1764158664344,0.10183733,2899.1,2899.0,0.1634]
[1764158664511,0.10183733,2899.1,2899.0,1.29449811]
[1764158664712,0.33619999,2900.7,2899.0,1.29449811]
[1764158664919,0.33619999,2900.7,2899.2,0.405504]
[1764158665456,0.33619999,2900.7,2899.4,0.405504]
[1764158665655,1.7519134,2903.2,2899.3,0.0638]
[1764158665656,0.09919999,2901.3,2899.6,0.405504]
[1764158665856,0.09919999,2901.3,2899.8,0.1]
[1764158666157,0.70948857,2901.6,2899.0,0.72559411]
[1764158666327,0.4841,2901.2,2899.1,0.0638]
[1764158666522,0.70948857,2901.5,2899.1,0.0638]
[1764158666523,0.70948857,2901.1,2899.3,0.82559411]
[1764158666749,0.238,2901.6,2899.5,0.405504]
[1764158666957,0.09919999,2901.0,2899.5,0.405504]
[1764158667154,0.09919999,2901.3,2899.7,0.405504]
[1764158667355,0.71027,2901.2,2899.9,1.13109811]
[1764158667651,0.09919999,2901.6,2900.1,0.405504]
[1764158667854,0.7113629,2901.5,2900.1,0.405504]
[1764158668054,0.77854699,2902.6,2900.0,0.0638]
[1764158668055,0.4841,2902.4,2900.3,0.505504]
[1764158668372,0.71139694,2902.0,2900.7,0.405504]
[1764158668539,0.4841,2902.9,2900.7,0.405504]
[1764158668723,0.1971,2902.6,2900.9,0.405504]
[1764158668922,0.81191733,2902.5,2900.9,0.405504]
[1764158669124,0.71271734,2902.4,2900.9,0.0638]
[1764158669338,0.71271734,2902.3,2900.9,0.0638]
[1764158669535,0.71271734,2902.2,2900.9,0.01985586]
[1764158669762,0.71271734,2902.1,2900.7,1.13109811]
[1764158669920,0.09919999,2902.9,2901.4,0.405504]
[1764158670124,0.71432158,2902.8,2901.4,0.405504]
[1764158670325,0.09919999,2902.9,2901.4,0.405504]
[1764158670532,0.71470774,2902.8,2901.2,0.72559411]
[1764158670722,0.002,2903.3,2901.6,0.0995195]
[1764158670927,0.71470874,2903.2,2901.6,0.0995195]
[1764158671158,0.002,2903.3,2901.3,0.238]
[1764158671346,0.71637154,2903.2,2902.0,0.0995195]
[1764158671659,0.71637154,2903.1,2902.1,0.0198]
[1764158671827,0.71637154,2903.0,2902.1,0.1193195]
[1764158672028,0.002,2903.3,2902.1,0.1193195]
[1764158672222,0.002,2903.3,2902.2,0.0198]
[1764158672455,0.002,2903.3,2902.2,0.1193195]
[1764158672658,0.002,2903.3,2902.3,0.405504]
[1764158673032,0.002,2903.3,2902.3,0.0198]
[1764158673257,0.002,2903.3,2901.9,0.0995195]
[1764158673457,0.002,2903.3,2901.7,0.37494547]
[1764158673935,0.002,2903.3,2901.9,0.0995195]
[1764158674137,0.002,2903.3,2901.8,0.72559411]
[1764158674338,0.002,2903.3,2902.6,0.0995195]
[1764158674526,0.002,2903.3,2902.4,0.3365195]
[1764158674958,0.002,2903.3,2902.4,0.237]
[1764158675263,0.002,2903.3,2902.6,0.405504]
[1764158675954,0.0012,2903.3,2902.6,0.405504]
[1764158676350,0.72570218,2903.2,2902.6,0.405504]
[1764158676531,0.72570218,2903.1,2902.6,0.5050235]
[1764158676729,0.0012,2903.3,2902.6,0.5050235]
[1764158676966,0.72568639,2903.2,2902.6,0.5050235]
[1764158677129,0.0012,2903.3,2902.6,0.5050235]
[1764158677327,0.72826032,2903.2,2902.6,0.5050235]
[1764158677566,0.72826032,2903.1,2902.6,0.5050235]
[1764158677759,0.72826032,2903.0,2902.6,0.5050235]
[1764158677958,0.72826032,2902.9,2902.6,0.5050235]
[1764158678165,0.0012,2903.3,2902.9,0.405504]
[1764158678465,0.0012,2903.3,2902.4,0.405504]
[1764158678765,0.0012,2903.3,2902.6,0.405504]
[1764158679364,0.0012,2903.3,2902.6,0.5050235]
[1764158679772,0.0012,2903.3,2902.9,0.0995195]
[1764158680065,0.0012,2903.3,2902.9,0.405504]
[1764158680452,0.0012,2903.3,2902.6,0.405504]
[1764158680653,0.002,2903.6,2903.1,0.405504]
[1764158680857,0.002,2903.6,2903.4,0.405504]
[1764158681389,0.002,2903.6,2903.1,0.72559411]
[1764158681671,0.002,2903.6,2903.2,0.237]
[1764158682473,0.002,2903.6,2902.5,0.0995195]
[1764158682840,0.002,2903.6,2902.6,0.236]
[1764158683171,0.002,2903.6,2902.0,0.72559411]
[1764158683353,0.002,2903.6,2902.5,0.0995195]
[1764158683537,0.002,2903.6,2902.6,6.02631361]
[1764158683737,0.002,2903.6,2903.1,0.405504]
[1764158683947,0.002,2903.6,2903.2,0.236]
[1764158684745,0.03077264,2903.5,2902.6,0.72559411]
[1764158685039,0.03077264,2903.5,2902.8,0.405504]
[1764158685245,0.03077264,2903.5,2902.9,0.0995195]
[1764158685446,0.03077264,2903.5,2903.0,0.405504]
[1764158685667,0.03077264,2903.5,2903.0,0.641504]